bitfinex-derivatives/quotes_SOLF0:USTF0_20240820
["timestamp","ask_amount","ask_price","bid_price","bid_amount"]
[1724122060559,8.46,145.52,145.48,0.05141624]
[1724122060757,3.4351,145.49,145.48,0.05141624]
[1724122060964,3.4351,145.49,145.48,7.34847957]
[1724122061156,3.4351,145.49,145.48,0.05141624]
[1724122061555,3.4351,145.49,145.48,7.34815624]
[1724122062261,3.435,145.5,145.48,7.34815624]
[1724122062453,3.435,145.5,145.49,7.29674]
[1724122062654,3.435,145.5,145.48,7.34815624]
[1724122065065,3.435,145.5,145.48,0.05141624]
[1724122065863,3.435,145.5,145.48,7.34795407]
[1724122068966,3.435,145.5,145.48,0.05141624]
[1724122069557,3.435,145.5,145.48,7.34825813]
[1724122071458,3.4351,145.49,145.48,7.34825813]
[1724122071659,11.8951,145.49,145.48,0.05141624]
[1724122074162,3.4351,145.49,145.48,0.05141624]
[1724122078562,3.4351,145.49,145.48,7.3484634]
[1724122079068,3.4351,145.49,145.48,7.34758915]
[1724122079460,3.4351,145.49,145.48,0.05141624]
[1724122080864,11.8951,145.49,145.48,0.05141624]
[1724122081476,3.4351,145.49,145.48,0.05141624]
[1724122083169,3.4351,145.49,145.48,7.34745872]
[1724122083561,3.4351,145.49,145.48,0.05141624]
[1724122084267,3.435,145.5,145.48,7.34543762]
[1724122084678,3.435,145.5,145.49,7.29402138]
[1724122085771,47.53695916,145.54,145.49,7.29402138]
[1724122085966,55.99695916,145.54,145.5,7.29402138]
[1724122086167,55.99695916,145.54,145.51,7.29402138]
[1724122086371,3.4347,145.51,145.48,3.4352]
[1724122086568,3.4347,145.51,145.49,7.28707224]
[1724122086775,3.4347,145.51,145.5,7.28707224]
[1724122086974,3.4345,145.52,145.49,7.28707224]
[1724122087174,3.4345,145.52,145.5,7.28707224]
[1724122087474,3.4345,145.52,145.51,7.28707224]
[1724122088082,3.4345,145.52,145.48,3.48387261]
[1724122088378,3.4345,145.52,145.49,7.28839653]
[1724122088677,3.4345,145.52,145.5,7.28839653]
[1724122088878,3.4345,145.52,145.51,7.28839653]
[1724122089378,3.4343,145.53,145.49,7.28839653]
[1724122089577,3.4343,145.53,145.5,7.28839653]
[1724122089781,3.4343,145.53,145.51,7.28839653]
[1724122089971,3.4343,145.53,145.52,7.28839653]
[1724122091176,8.46,145.56,145.52,7.28839653]
[1724122091379,0.0985,145.61,145.53,7.33707308]
[1724122091583,8.46,145.57,145.53,0.04867655]
[1724122092081,3.4338,145.55,145.53,0.04867655]
[1724122092280,3.4338,145.55,145.5,1.2892]
[1724122092281,8.46,145.54,145.39,40.92741793]
[1724122092479,8.46,145.49,145.42,9.747]
[1724122092678,11.8953,145.49,145.45,3.4359]
[1724122092879,11.8953,145.49,145.46,7.27144537]
[1724122093074,11.8953,145.49,145.47,7.27144537]
[1724122093277,11.8953,145.49,145.48,7.27144537]
[1724122093876,3.435,145.5,145.48,7.27144537]
[1724122094082,3.435,145.5,145.47,0.04442443]
[1724122094083,3.435,145.5,145.49,7.27144537]
[1724122094274,3.4348,145.51,145.48,7.27144537]
[1724122094482,3.4348,145.51,145.49,7.27144537]
[1724122094674,3.4348,145.51,145.5,7.27144537]
[1724122095280,3.4349,145.5,145.49,0.04738089]
[1724122095478,3.4349,145.5,145.49,7.31325589]
[1724122097679,3.37413084,145.57,145.49,7.31325589]
[1724122097879,247.62,145.6,145.5,7.265875]
[1724122098081,8.46,145.55,145.51,7.265875]
[1724122098280,8.46,145.55,145.54,0.04456389]
[1724122098583,8.46,145.55,145.48,13.2379]
[1724122098887,3.4345,145.52,145.5,0.04368013]
[1724122099090,3.4345,145.52,145.51,7.26505492]
[1724122099479,227.0,145.6,145.51,7.26505492]
[1724122099687,227.0,145.6,145.51,8.46]
[1724122099688,8.46,145.58,145.51,8.46]
[1724122099880,8.46,145.56,145.52,7.26214924]
[1724122100185,8.46,145.56,145.5,8.46]
[1724122100186,230.46308644,145.6,145.53,7.30798038]
[1724122100480,8.46,145.57,145.54,7.26214924]
[1724122101086,11.8938,145.55,145.54,7.26214924]
[1724122101981,3.4338,145.55,145.54,7.26214924]
[1724122102982,8.46,145.58,145.54,7.26214924]
[1724122103176,54.46,145.64,145.55,7.30974885]
[1724122103375,8.46,145.58,145.52,2.572]
[1724122103574,8.46,145.58,145.53,8.55144304]
[1724122103779,8.46,145.58,145.54,7.26334304]
[1724122103992,8.46,145.58,145.54,7.30870895]
[1724122104489,3.4335,145.56,145.55,7.26334304]
[1724122104691,3.4335,145.56,145.54,0.04536591]
[1724122105286,8.46,145.57,145.54,0.04536591]
[1724122105488,3.4337,145.55,145.54,0.04536591]
[1724122105691,8.46,145.55,145.53,0.04675333]
[1724122105885,3.4341,145.54,145.53,0.04675333]
[1724122107091,11.8941,145.54,145.53,0.04675333]
[1724122108382,3.4341,145.54,145.53,0.04675333]
[1724122109299,3.4339,145.55,145.53,0.04675333]
[1724122111396,3.4339,145.55,145.53,7.31193875]
[1724122111588,3.4339,145.55,145.53,0.04675333]
[1724122112097,3.4339,145.54,145.53,0.04675333]
[1724122114594,3.435,145.5,145.47,2.5383]
[1724122114787,8.46,145.51,145.48,7.27030123]
[1724122115286,33.84,145.57,145.47,2.5383]
[1724122115287,8.46,145.53,145.47,2.5383]
[1724122115491,230.37550137,145.61,145.48,7.26872687]
[1724122115701,8.46,145.55,145.49,8.46]
[1724122115909,0.05232526,145.56,145.53,0.04551913]
[1724122116102,8.46,145.57,145.53,0.04551913]
[1724122116291,3.4341,145.54,145.51,7.26729353]
[1724122116493,0.04421,145.56,145.51,7.31981742]
[1724122116692,0.04421,145.56,145.52,7.26729353]
[1724122116997,0.04421,145.56,145.53,7.26729353]
[1724122117197,0.04421,145.56,145.54,7.26729353]
[1724122117393,0.04421,145.56,145.51,0.05252389]
[1724122117802,0.04421,145.56,145.52,7.26589515]
[1724122118801,3.4337,145.55,145.52,10.70019515]
[1724122119100,3.4337,145.55,145.53,7.26589515]
[1724122120796,3.4339,145.54,145.53,7.26589515]
[1724122120996,0.04421,145.56,145.53,7.26589515]
[1724122121198,0.04421,145.56,145.51,0.05252389]
[1724122121802,0.04421,145.56,145.51,7.32085587]
[1724122122000,0.04421,145.56,145.52,7.26833198]
[1724122122202,0.04421,145.56,145.53,7.26833198]
[1724122122399,0.04421,145.56,145.51,0.05252389]
[1724122122900,3.4338,145.55,145.52,3.4344]
[1724122123099,3.4338,145.55,145.53,7.27272389]
[1724122125707,3.47781,145.56,145.53,7.27272389]
[1724122126913,3.47781,145.56,145.54,7.27070375]
[1724122127108,3.47781,145.56,145.55,7.27070375]
[1724122127304,3.47781,145.56,145.53,7.27070375]
[1724122128208,3.47781,145.56,145.53,7.31730374]
[1724122128414,0.04421,145.56,145.54,7.27070375]
[1724122129205,3.47771,145.56,145.54,7.27070375]
[1724122130817,3.47771,145.56,145.55,7.27484653]
[1724122131215,3.47771,145.56,145.54,7.27484653]
[1724122131519,3.47771,145.56,145.55,7.27484653]
[1724122131711,3.47771,145.56,145.54,7.27484653]
[1724122137915,11.91771,145.56,145.54,7.27484653]
[1724122139022,11.91771,145.56,145.55,7.2738916]
[1724122139216,3.47771,145.56,145.55,7.2738916]
[1724122139624,3.47771,145.56,145.54,7.2738916]
[1724122140323,3.47771,145.56,145.53,3.48069999]
[1724122140524,3.47771,145.56,145.54,7.27336556]
[1724122142018,3.47771,145.56,145.55,7.27048014]
[1724122142626,3.47771,145.56,145.54,7.27048014]
[1724122142821,3.47771,145.56,145.55,7.27048014]
[1724122143022,3.47771,145.56,145.54,7.27048014]
[1724122144227,3.47771,145.56,145.53,3.48069999]
[1724122144529,3.47771,145.56,145.54,7.27563327]
[1724122144723,3.47771,145.56,145.53,3.48069999]
[1724122145322,3.47771,145.56,145.54,7.27594653]
[1724122146317,3.4337,145.55,145.54,7.27594653]
[1724122146723,0.04421,145.56,145.54,7.27594653]
[1724122146929,3.47781,145.56,145.54,7.27594653]
[1724122147825,3.4337,145.55,145.54,7.27594653]
[1724122148022,3.4337,145.55,145.53,7.32254652]
[1724122148227,3.4337,145.55,145.54,7.27594653]
[1724122149129,3.4337,145.55,145.53,7.32254652]
[1724122149827,11.8739,145.54,145.53,7.32254652]
[1724122150032,3.4339,145.54,145.53,0.04659999]
[1724122150228,11.8739,145.54,145.53,0.04659999]
[1724122151836,11.8739,145.54,145.53,7.32672831]
[1724122152043,11.8739,145.54,145.53,0.04659999]
[1724122152730,11.8739,145.54,145.53,7.32672831]
[1724122152928,11.8739,145.54,145.53,0.04659999]
[1724122154325,11.8739,145.54,145.53,7.32946528]
[1724122155130,11.8739,145.54,145.53,7.32942188]
[1724122159637,11.8739,145.54,145.53,0.04659999]
[1724122160735,8.44,145.54,145.47,2.5587]
[1724122160941,37.22854998,145.53,145.48,7.2838131]
[1724122161128,8.44,145.49,145.47,2.5587]
[1724122161639,8.44,145.49,145.4,101.04372039]
[1724122161830,3.436,145.46,145.42,3.4366]
[1724122162033,8.44,145.47,145.41,43.52549381]
[1724122162338,3.4362,145.45,145.43,0.04523913]
[1724122163940,0.04657632,145.46,145.43,0.04523913]
[1724122164447,8.44,145.45,145.43,0.04523913]
[1724122164635,11.8763,145.44,145.43,0.04523913]
[1724122167844,3.4367,145.43,145.38,3.4376]
[1724122168044,8.44,145.42,145.38,3.4376]
[1724122168239,8.44,145.42,145.39,3.4375]
[1724122168944,8.49041707,145.42,145.39,3.484492]
[1724122169146,11.92721707,145.42,145.39,3.484492]
[1724122171243,8.44,145.41,145.39,0.046992]
[1724122171749,3.4372,145.4,145.39,0.046992]
[1724122175947,3.48731707,145.42,145.39,0.046992]
[1724122176147,8.49041707,145.42,145.39,0.046992]
[1724122176843,3.4372,145.41,145.39,0.046992]
[1724122177043,8.49041707,145.42,145.39,0.046992]
[1724122177438,3.4372,145.4,145.39,0.046992]
[1724122180742,11.8772,145.4,145.39,0.046992]
[1724122187056,3.4372,145.4,145.39,0.046992]
[1724122188060,8.44,145.4,145.33,71.31862521]
[1724122188265,8.44,145.38,145.33,71.31862521]
[1724122188455,10.30350659,145.45,145.33,74.74925186]
[1724122188654,3.4377,145.38,145.33,74.74925186]
[1724122189060,3.4377,145.38,145.35,3.4382]
[1724122189259,0.04505737,145.37,145.34,0.04915344]
[1724122189463,8.44,145.41,145.36,3.438]
[1724122189660,20.62,145.49,145.35,1.2641]
[1724122189860,3.4374,145.4,145.35,1.2641]
[1724122190056,3.4374,145.4,145.37,3.4379]
[1724122190269,8.44,145.41,145.35,1.2641]
[1724122190469,3.4375,145.39,145.35,1.2641]
[1724122190666,3.4375,145.39,145.36,3.4381]
[1724122190977,0.04803267,145.38,145.36,3.48369031]
[1724122192770,8.48803267,145.38,145.36,0.04559031]
[1724122193675,11.92583267,145.38,145.36,0.04559031]
[1724122194576,3.4379,145.37,145.36,0.04559031]
[1724122195774,3.48593267,145.38,145.36,0.04559031]
[1724122195969,0.04803267,145.38,145.36,0.04559031]
[1724122196365,0.04803267,145.38,145.36,3.48359031]
[1724122196873,0.04803267,145.38,145.37,3.4379]
[1724122197067,0.04803267,145.38,145.36,0.04559031]
[1724122197477,0.04803267,145.38,145.36,3.48359031]
[1724122199879,3.4373,145.4,145.37,3.4379]
[1724122200574,3.4375,145.39,145.37,3.4379]
[1724122200770,3.48988167,145.39,145.37,3.4379]
[1724122201377,3.48988167,145.39,145.36,3.48369031]
[1724122201786,0.05238167,145.39,145.36,3.48369031]
[1724122202084,0.05238167,145.39,145.36,0.04559031]
[1724122202985,3.48988167,145.39,145.36,0.04559031]
[1724122203780,3.48988167,145.39,145.37,3.4379]
[1724122203990,0.05238167,145.39,145.36,0.04559031]
[1724122204180,8.44,145.43,145.35,9.7041]
[1724122204486,8.44,145.43,145.38,3.4376]
[1724122204685,233.8701,145.5,145.38,8.44]
[1724122204880,8.44,145.45,145.38,8.44]
[1724122205188,3.4365,145.43,145.4,3.4371]
[1724122205390,3.47556939,145.43,145.4,3.48237895]
[1724122205777,3.47556939,145.43,145.4,0.04527895]
[1724122205778,3.4368,145.42,145.4,0.04527895]
[1724122205983,8.44,145.41,145.4,0.04527895]
[1724122206488,11.877,145.41,145.4,0.04527895]
[1724122206992,0.03906939,145.43,145.4,0.04527895]
[1724122207186,3.47576939,145.43,145.4,3.48237895]
[1724122207389,0.03906939,145.43,145.4,0.04527895]
[1724122208885,0.03906939,145.43,145.41,3.4369]
[1724122214288,0.03906939,145.43,145.42,3.4368]
[1724122214486,48.1,145.57,145.43,8.44]
[1724122214795,8.44,145.51,145.44,9.6903]
[1724122215184,3.4351,145.49,145.46,3.4356]
[1724122215585,3.4351,145.49,145.46,3.48582855]
[1724122215994,3.435,145.5,145.47,3.4356]
[1724122216194,8.44,145.49,145.46,0.05022855]
[1724122216386,8.44,145.49,145.44,1.2503]
[1724122216584,11.8753,145.49,145.46,3.48688708]
[1724122217887,3.4354,145.48,145.46,0.05108708]
[1724122218994,8.44,145.49,145.46,3.48688708]
[1724122218995,11.8751,145.49,145.46,3.48688708]
[1724122219193,11.8751,145.49,145.46,0.05108708]
[1724122220295,3.4353,145.48,145.46,0.05108708]
[1724122220795,8.44,145.48,145.46,0.05108708]
[1724122220990,3.4356,145.47,145.46,0.05108708]
[1724122222984,3.4354,145.48,145.46,0.05108708]
[1724122225594,3.4356,145.47,145.46,0.05108708]
[1724122232205,11.8756,145.47,145.46,0.05108708]
[1724122236102,3.4356,145.47,145.46,0.05108708]
[1724122247008,3.4355,145.48,145.46,0.05108708]
[1724122247206,8.44,145.53,145.46,8.49108708]
[1724122247409,8.44,145.53,145.46,8.44]
[1724122247704,8.44,145.53,145.48,0.04774396]
[1724122247903,3.4351,145.5,145.48,0.04774396]
[1724122248712,8.44,145.53,145.48,0.04774396]
[1724122249217,3.435,145.5,145.48,0.04774396]
[1724122249710,8.44,145.5,145.48,0.04774396]
[1724122249907,3.4351,145.49,145.48,0.04774396]
[1724122256424,11.8751,145.49,145.48,0.04774396]
[1724122256923,11.8751,145.49,145.42,4.78777868]
[1724122256924,8.44,145.49,145.42,3.45507868]
[1724122257114,8.44,145.46,145.42,3.45507868]
[1724122257431,3.4359,145.46,145.43,3.4365]
[1724122257925,3.48272047,145.46,145.43,3.48350267]
[1724122258126,0.04682047,145.46,145.44,3.4362]
[1724122258324,0.04682047,145.46,145.43,0.04700267]
[1724122258828,0.04682047,145.46,145.44,3.4361]
[1724122261125,0.04682047,145.46,145.43,0.04700267]
[1724122261325,0.04682047,145.46,145.45,3.4361]
[1724122261530,0.1916,145.56,145.45,11.8761]
[1724122261832,8.44,145.52,145.45,11.8761]
[1724122262633,8.44,145.52,145.47,0.04502341]
[1724122262834,3.4354,145.48,145.47,0.04502341]
[1724122263735,3.4352,145.49,145.47,0.04502341]
[1724122264838,11.875,145.5,145.47,3.48062341]
[1724122265135,3.435,145.5,145.47,3.48062341]
[1724122269936,3.4345,145.52,145.47,0.04502341]
[1724122270139,8.44,145.54,145.47,8.48502341]
[1724122270342,8.44,145.52,145.49,0.04612866]
[1724122270537,3.4348,145.51,145.49,0.05289566]
[1724122271535,3.4349,145.5,145.49,0.05289566]
[1724122274538,11.8749,145.5,145.49,0.05289566]
[1724122281058,8.44,145.5,145.42,3.45507868]
[1724122281245,8.44,145.46,145.41,1.2542]
[1724122281447,3.4364,145.44,145.41,1.2542]
[1724122281849,3.4364,145.44,145.41,4.6912]
[1724122282053,8.44,145.43,145.39,1.2648]
[1724122282251,8.44,145.42,145.41,0.0496295]
[1724122283361,11.8768,145.42,145.41,0.0496295]
[1724122291055,3.4379,145.38,145.35,1.2605]
[1724122291267,8.44,145.38,145.35,1.2605]
[1724122292263,8.49110025,145.38,145.35,1.31106957]
[1724122293574,3.4381,145.37,145.35,1.31106957]
[1724122295565,0.05110025,145.38,145.35,1.31106957]
[1724122295961,3.48900025,145.38,145.35,4.74946957]
[1724122296664,3.48900025,145.38,145.35,1.31106957]
[1724122296975,0.05110025,145.38,145.35,1.31106957]
[1724122297162,8.44,145.37,145.35,1.31106957]
[1724122297358,3.4382,145.36,145.35,0.05056957]
[1724122298059,3.438,145.37,145.35,0.05056957]
[1724122298771,11.92890025,145.38,145.35,0.05056957]
[1724122300068,11.92890025,145.38,145.35,3.48886957]
[1724122301372,8.44,145.37,145.35,0.05056957]
[1724122303274,8.44,145.36,145.35,0.05056957]
[1724122306467,11.8781,145.37,145.35,0.05056957]
[1724122306767,3.48890025,145.38,145.35,0.05056957]
[1724122307483,3.48890025,145.38,145.35,3.48886957]
[1724122308271,3.48890025,145.38,145.36,3.438]
[1724122308272,0.05110025,145.38,145.36,3.438]
[1724122308781,0.05110025,145.38,145.36,4.7499]
[1724122310878,3.48880025,145.38,145.36,1.3119]
[1724122311273,0.05110025,145.38,145.36,1.3119]
[1724122311476,3.48880025,145.38,145.36,4.75]
[1724122311672,3.48880025,145.38,145.36,1.3119]
[1724122315577,3.48880025,145.38,145.35,4.83556957]
[1724122315786,11.878,145.37,145.35,1.39726957]
[1724122317891,3.48890025,145.38,145.35,4.83546957]
[1724122318184,0.05110025,145.38,145.35,1.39726957]
[1724122318783,0.05110025,145.38,145.36,3.4382]
[1724122321981,0.05110025,145.38,145.37,3.4379]
[1724122323688,0.05110025,145.38,145.36,3.4381]
[1724122323689,3.48880025,145.38,145.36,3.4381]
[1724122323891,8.44,145.37,145.35,1.39726957]
[1724122324187,8.44,145.37,145.35,4.83556957]
[1724122326986,8.44,145.37,145.35,1.39726957]
[1724122326987,11.878,145.37,145.35,1.39726957]
[1724122328689,11.878,145.37,145.35,0.05056957]
[1724122328690,3.4382,145.36,145.35,0.05056957]
[1724122329890,3.4388,145.34,145.29,76.71792438]
[1724122330090,8.44,145.33,145.3,3.45288239]
[1724122330295,8.44,145.33,145.31,3.4392]
[1724122330999,8.48406124,145.33,145.31,3.48660269]
[1724122331388,8.48406124,145.33,145.31,0.04740269]
[1724122331389,11.8791,145.32,145.31,0.04740269]
[1724122331888,8.44,145.32,145.31,0.04740269]
[1724122332190,8.48406124,145.33,145.31,0.04740269]
[1724122333894,11.92296124,145.33,145.31,0.04740269]
[1724122334890,3.4391,145.32,145.31,0.04740269]
[1724122335784,8.48406124,145.33,145.31,0.04740269]
[1724122335785,3.48316124,145.33,145.31,0.04740269]
[1724122336689,3.48316124,145.33,145.31,3.48680269]
[1724122337895,0.04406124,145.33,145.31,3.48680269]
[1724122338090,0.04406124,145.33,145.32,3.4391]
[1724122344102,8.44,145.37,145.34,3.4385]
[1724122344899,11.8782,145.37,145.34,3.4385]
[1724122345099,11.8782,145.37,145.34,3.48460505]
[1724122345100,11.93075692,145.37,145.34,3.48460505]
[1724122345602,3.4382,145.36,145.34,3.48460505]
[1724122347912,0.05255692,145.37,145.34,0.04610505]
[1724122348613,3.49055692,145.37,145.34,3.48460505]
[1724122348805,8.44,145.36,145.34,3.48460505]
[1724122349908,11.8782,145.36,145.34,3.48460505]
[1724122350711,8.44,145.36,145.34,3.48460505]
[1724122353111,0.05255692,145.37,145.35,3.4384]
[1724122354114,0.05255692,145.37,145.34,0.04610505]
[1724122354615,0.05255692,145.37,145.35,3.4384]
[1724122355210,0.05255692,145.37,145.36,3.4382]
[1724122358222,0.1937,145.45,145.38,3.4375]
[1724122358418,8.44,145.41,145.38,3.4375]
[1724122358619,33.76,145.46,145.38,3.4375]
[1724122358920,11.8771,145.41,145.38,3.4375]
[1724122359311,11.9298547,145.41,145.38,3.48855506]
[1724122359520,0.0527547,145.41,145.39,3.4374]
[1724122359716,0.0527547,145.41,145.38,11.97494205]
[1724122360028,8.44,145.48,145.39,8.44]
[1724122360219,8.44,145.48,145.41,8.44]
[1724122360821,3.4357,145.47,145.43,3.48165232]
[1724122361422,8.44,145.48,145.44,3.4362]
[1724122361617,8.44,145.49,145.43,0.04535232]
[1724122361813,11.8752,145.49,145.45,3.4359]
[1724122362018,11.8752,145.49,145.45,3.48734327]
[1724122363117,8.44,145.49,145.45,3.48734327]
[1724122364132,11.8753,145.49,145.45,3.48734327]
[1724122364329,8.44,145.49,145.45,3.48734327]
[1724122364622,3.4354,145.48,145.45,3.48734327]
[1724122370039,11.875,145.5,145.46,3.4356]
[1724122370536,11.875,145.5,145.47,0.0516687]
[1724122370728,11.8747,145.51,145.47,0.0516687]
[1724122371032,11.8747,145.51,145.46,3.36188494]
[1724122371337,11.8747,145.51,145.48,3.48232673]
[1724122371529,3.4349,145.5,145.48,0.04702673]
[1724122373231,11.8749,145.5,145.48,0.04702673]
[1724122373633,3.4351,145.49,145.48,0.04702673]
[1724122379442,11.8751,145.49,145.48,0.04702673]
[1724122383740,3.4351,145.49,145.48,0.04702673]
[1724122383935,11.8751,145.49,145.48,0.04702673]
[1724122395256,3.4351,145.49,145.48,0.04702673]
[1724122395555,11.8751,145.49,145.48,0.04702673]
[1724122396357,3.4351,145.49,145.48,0.04702673]
[1724122396568,11.8751,145.49,145.48,0.04702673]
[1724122404859,3.4351,145.49,145.48,0.04702673]
[1724122405160,11.8751,145.49,145.48,0.04702673]
[1724122409765,11.8751,145.49,145.41,2.7255]
[1724122409766,8.44,145.49,145.41,2.7255]
[1724122409961,8.44,145.43,145.41,2.7255]
[1724122410161,8.44,145.43,145.4,65.72936061]
[1724122410365,8.44,145.41,145.4,65.72936061]
[1724122411760,11.877,145.41,145.4,65.72936061]
[1724122411960,8.44,145.41,145.39,0.04584329]
[1724122412467,3.4371,145.41,145.39,0.04584329]
[1724122412670,11.8771,145.41,145.39,0.04584329]
[1724122414870,3.4371,145.41,145.39,0.04584329]
[1724122415176,0.04463621,145.42,145.39,0.04584329]
[1724122415571,0.04463621,145.42,145.39,1.33534329]
[1724122415774,0.04463621,145.42,145.4,3.4372]
[1724122415979,0.04463621,145.42,145.39,1.33534329]
[1724122416972,3.48143621,145.42,145.39,4.77264329]
[1724122419876,3.48143621,145.42,145.39,1.33534329]
[1724122420074,8.44,145.5,145.41,8.44]
[1724122420375,8.44,145.5,145.43,8.44]
[1724122420764,3.4355,145.48,145.45,3.436]
[1724122421167,3.4355,145.48,145.45,3.47995241]
[1724122421374,3.4356,145.47,145.45,3.47995241]
[1724122421972,3.4356,145.47,145.45,0.04395241]
[1724122423072,3.4356,145.47,145.45,3.47995241]
[1724122423977,3.4354,145.48,145.45,3.47995241]
[1724122425775,3.4352,145.49,145.46,3.4358]
[1724122425972,3.4352,145.49,145.46,3.48135092]
[1724122426173,8.44,145.5,145.46,3.48135092]
[1724122426376,3.4354,145.48,145.46,0.04555092]
[1724122428282,8.44,145.48,145.46,0.04555092]
[1724122428877,3.4356,145.47,145.46,0.04555092]
[1724122431681,3.4354,145.48,145.46,0.04555092]
[1724122435883,3.4354,145.48,145.46,3.48135092]
[1724122437389,3.4354,145.48,145.46,0.04555092]
[1724122437785,8.44,145.51,145.46,0.04555092]
[1724122437992,8.44,145.52,145.47,0.04951167]
[1724122438286,8.44,145.52,145.47,2.69601167]
[1724122438685,8.44,145.52,145.48,3.4352]
[1724122439282,3.4349,145.5,145.48,3.4352]
[1724122440390,3.4349,145.5,145.47,6.13151167]
[1724122441285,8.44,145.51,145.47,6.13151167]
[1724122441893,3.4349,145.5,145.47,6.13151167]
[1724122443792,3.4353,145.48,145.47,2.69601167]
[1724122443989,3.4353,145.48,145.47,0.04951167]
[1724122444792,11.8753,145.48,145.47,0.04951167]
[1724122446993,11.8753,145.48,145.4,40.94389201]
[1724122446994,8.44,145.48,145.4,40.94389201]
[1724122447196,8.44,145.44,145.36,8.44]
[1724122447394,8.44,145.44,145.39,3.4374]
[1724122447595,3.4367,145.43,145.38,3.40252821]
[1724122448094,0.04448843,145.42,145.39,0.05227684]
[1724122448796,0.04448843,145.42,145.4,3.4372]
[1724122454405,3.48128843,145.42,145.39,3.48967684]
[1724122454608,0.04448843,145.42,145.39,0.05227684]
[1724122455914,3.4372,145.41,145.39,0.05227684]
[1724122456118,0.04448843,145.42,145.39,0.05227684]
[1724122456310,3.48138843,145.42,145.39,3.48957684]
[1724122456908,8.2353,145.52,145.41,8.44]
[1724122456909,8.44,145.48,145.41,8.44]
[1724122457209,8.44,145.48,145.42,8.44]
[1724122457611,3.436,145.46,145.43,3.4364]
[1724122457915,3.436,145.46,145.43,3.4806893]
[1724122460220,1.3662,145.52,145.43,0.0442893]
[1724122460521,8.44,145.49,145.46,0.05266107]
[1724122461917,3.4358,145.47,145.46,0.05266107]
[1724122462420,3.4355,145.48,145.46,0.05266107]
[1724122464414,3.4356,145.47,145.46,0.05266107]
[1724122466024,11.8756,145.47,145.46,0.05266107]
[1724122466416,3.4365,145.44,145.4,6.0575]
[1724122466615,11.8765,145.44,145.4,6.0575]
[1724122466917,8.44,145.44,145.4,6.0575]
[1724122467116,3.4366,145.43,145.4,6.0575]
[1724122467524,3.48187652,145.43,145.4,6.10303744]
[1724122468924,0.04527652,145.43,145.4,2.66593744]
[1724122469521,0.04527652,145.43,145.41,3.437]
[1724122474633,0.04527652,145.43,145.41,11.877]
[1724122474929,0.04527652,145.43,145.42,3.4368]
[1724122475129,8.44,145.48,145.42,3.4368]
[1724122475331,3.4361,145.45,145.42,3.4368]
[1724122475835,8.44,145.48,145.41,11.8769]
[1724122476020,3.4363,145.44,145.41,11.8769]
[1724122476222,3.4363,145.44,145.43,0.04588635]
[1724122482229,3.4362,145.45,145.43,0.04588635]
[1724122483125,3.4359,145.46,145.43,0.04588635]
[1724122483326,8.44,145.48,145.43,0.04588635]
[1724122483527,3.4361,145.45,145.43,0.04588635]
[1724122486534,3.4359,145.46,145.43,3.48238635]
[1724122487035,3.4357,145.47,145.44,3.4361]
[1724122487227,3.4357,145.47,145.44,3.48461927]
[1724122488935,3.4355,145.48,145.45,3.4359]
[1724122497435,3.4356,145.47,145.44,11.92471927]
[1724122498639,3.4356,145.47,145.44,3.48471927]
[1724122504545,3.4356,145.47,145.45,3.436]
[1724122504751,9.8062,145.52,145.44,8.48851927]
[1724122504953,9.8062,145.52,145.45,8.44]
[1724122505138,3.4351,145.5,145.47,3.4355]
[1724122505344,3.4351,145.5,145.47,3.48140472]
[1724122507248,3.4353,145.49,145.47,0.04590472]
[1724122507950,3.4353,145.49,145.47,3.48150472]
[1724122510544,3.435,145.5,145.48,3.4354]
[1724122510747,3.435,145.5,145.47,0.04590472]
[1724122510958,3.435,145.5,145.46,11.0871]
[1724122511257,3.435,145.5,145.47,3.48585577]
[1724122512861,3.435,145.5,145.47,7.0012497]
[1724122513858,3.435,145.5,145.47,3.48585577]
[1724122514261,3.435,145.5,145.47,6.976179]